bitfinex/quotes_BTCUSD_20240921
["timestamp","ask_amount","ask_price","bid_price","bid_amount"]
[1726894677431,0.001825,62885.0,62884.0,0.455621]
[1726894677668,0.001825,62885.0,62884.0,0.33661311]
[1726894678563,0.001825,62885.0,62884.0,0.455621]
[1726894679022,0.001825,62885.0,62884.0,0.45563941]
[1726894680461,0.001825,62885.0,62884.0,0.33663152]
[1726894681397,0.001825,62885.0,62884.0,0.32019171]
[1726894681634,0.001825,62885.0,62884.0,0.33662975]
[1726894684566,0.001825,62885.0,62884.0,0.3201955]
[1726894684821,0.001825,62885.0,62884.0,0.33663731]
[1726894687470,0.001825,62885.0,62884.0,0.5548566]
[1726894687969,0.001825,62885.0,62884.0,0.55485103]
[1726894690539,0.001825,62885.0,62884.0,0.45325103]
[1726894691289,0.001825,62885.0,62884.0,0.43511477]
[1726894691541,0.001825,62885.0,62884.0,0.33462499]
[1726894692549,0.001825,62885.0,62884.0,0.39056026]
[1726894692550,0.098025,62885.0,62884.0,0.39056026]
[1726894692799,0.098025,62885.0,62884.0,0.29518318]
[1726894693766,0.098025,62885.0,62884.0,0.31818318]
[1726894694260,0.098025,62885.0,62884.0,0.30005367]
[1726894694500,0.098025,62885.0,62884.0,0.31792264]
[1726894695009,0.097025,62885.0,62884.0,0.30392264]
[1726894695239,0.097025,62885.0,62884.0,0.31792264]
[1726894695723,0.097025,62885.0,62884.0,0.30392264]
[1726894696256,0.097025,62885.0,62884.0,0.31792264]
[1726894696491,0.097025,62885.0,62884.0,0.30392264]
[1726894696966,0.097025,62885.0,62884.0,0.31792264]
[1726894697524,0.097025,62885.0,62884.0,0.30005367]
[1726894697724,0.097025,62885.0,62884.0,0.3179457]
[1726894698215,0.097025,62885.0,62884.0,0.3039457]
[1726894698457,0.097025,62885.0,62884.0,0.3179457]
[1726894704314,0.097025,62885.0,62884.0,0.31793398]
[1726894709328,0.000825,62885.0,62884.0,0.31793398]
[1726894715213,0.000825,62885.0,62884.0,0.36554164]
[1726894716427,0.000825,62885.0,62884.0,0.31793398]
[1726894716914,0.000825,62885.0,62884.0,0.30393398]
[1726894717402,0.000825,62885.0,62884.0,0.31793398]
[1726894717645,0.000825,62885.0,62884.0,0.36549951]
[1726894718291,0.000825,62885.0,62884.0,0.35149951]
[1726894718463,0.000825,62885.0,62884.0,0.31789185]
[1726894720821,0.000825,62885.0,62884.0,0.31792598]
[1726894724006,0.000825,62885.0,62884.0,0.31793614]
[1726894724282,0.000825,62885.0,62884.0,0.38934763]
[1726894724534,0.000825,62885.0,62884.0,0.41797575]
[1726894725191,0.000825,62885.0,62884.0,0.34656426]
[1726894726346,0.000825,62885.0,62884.0,0.41797575]
[1726894726829,0.000825,62885.0,62884.0,0.41801405]
[1726894727065,0.000825,62885.0,62884.0,0.40401405]
[1726894727309,0.000825,62885.0,62884.0,0.44183064]
[1726894727546,0.000825,62885.0,62884.0,0.41801607]
[1726894727806,0.000825,62885.0,62884.0,0.42800308]
[1726894728064,0.000825,62885.0,62884.0,0.3327367]
[1726894728309,0.000825,62885.0,62884.0,0.44200308]
[1726894729093,0.000825,62885.0,62884.0,0.44200684]
[1726894729351,0.000825,62885.0,62884.0,0.3467367]
[1726894730096,0.000825,62885.0,62884.0,0.3327367]
[1726894730536,0.000825,62885.0,62884.0,0.3467367]
[1726894731065,0.000825,62885.0,62884.0,0.30005367]
[1726894731312,0.000825,62885.0,62884.0,0.34663281]
[1726894732012,0.000825,62885.0,62884.0,0.46572808]
[1726894732457,0.000825,62885.0,62884.0,0.34663281]
[1726894733244,0.000825,62885.0,62884.0,0.46572808]
[1726894734270,0.000825,62885.0,62884.0,0.41914894]
[1726894734556,0.000825,62885.0,62884.0,0.44189074]
[1726894734793,0.000825,62885.0,62884.0,0.34660227]
[1726894735609,0.000825,62885.0,62884.0,0.44189074]
[1726894735823,0.000825,62885.0,62884.0,0.34660227]
[1726894736205,0.000825,62885.0,62884.0,0.44189074]
[1726894737016,0.000825,62885.0,62884.0,0.34660227]
[1726894737227,0.000825,62885.0,62884.0,0.44189074]
[1726894740661,0.000825,62885.0,62884.0,0.34660227]
[1726894741131,0.000825,62885.0,62884.0,0.44191029]
[1726894741321,0.000825,62885.0,62884.0,0.34660227]
[1726894741905,0.000825,62885.0,62884.0,0.4657373]
[1726894742578,0.000825,62885.0,62884.0,0.44590227]
[1726894743057,0.000825,62885.0,62884.0,0.5650346]
[1726894743506,0.000825,62885.0,62884.0,0.43190227]
[1726894745496,0.000825,62885.0,62884.0,0.44590227]
[1726894745934,0.000825,62885.0,62884.0,0.43190227]
[1726894746351,0.000825,62885.0,62884.0,0.44590227]
[1726894746590,0.000825,62885.0,62884.0,0.44620669]
[1726894748443,0.000825,62885.0,62884.0,0.58916873]
[1726894748678,0.000825,62885.0,62884.0,0.44620669]
[1726894749129,0.000825,62885.0,62884.0,0.58916873]
[1726894749557,0.000825,62885.0,62884.0,0.44620669]
[1726894749775,0.000825,62885.0,62884.0,0.44632315]
[1726894750002,0.000825,62885.0,62884.0,0.58922537]
[1726894751375,0.000825,62885.0,62884.0,0.57408589]
[1726894751595,0.000825,62885.0,62884.0,0.62103118]
[1726894752220,0.000825,62885.0,62884.0,0.60703127]
[1726894752759,0.000825,62885.0,62884.0,0.70053127]
[1726894753210,0.000825,62885.0,62884.0,0.68653127]
[1726894753461,0.000825,62885.0,62884.0,0.55762896]
[1726894753672,0.000825,62900.0,62899.0,0.21861929]
[1726894754085,0.000825,62900.0,62899.0,0.52303319]
[1726894754088,0.000825,62900.0,62899.0,0.61433319]
[1726894754089,0.00872394,62900.0,62899.0,0.61433319]
[1726894754300,0.000825,62900.0,62899.0,0.66194315]
[1726894754517,0.00872394,62900.0,62899.0,0.66394315]
[1726894754731,0.00872394,62900.0,62899.0,0.54491825]
[1726894754732,0.000825,62900.0,62899.0,0.54491825]
[1726894755649,0.000825,62900.0,62899.0,0.64005859]
[1726894756790,0.000825,62900.0,62899.0,0.65405859]
[1726894757713,0.000825,62900.0,62899.0,0.55891825]
[1726894758186,0.000825,62900.0,62899.0,0.6777751]
[1726894758636,0.000825,62900.0,62899.0,0.65384449]
[1726894758849,0.000825,62900.0,62899.0,0.56283377]
[1726894759290,0.000825,62900.0,62899.0,0.57683377]
[1726894759509,0.000825,62900.0,62899.0,0.69569062]
[1726894759725,0.000825,62900.0,62899.0,0.68169062]
[1726894759971,0.000825,62900.0,62899.0,0.64888267]
[1726894760188,0.000825,62900.0,62899.0,0.57684113]
[1726894760442,0.000825,62900.0,62899.0,0.56284113]
[1726894760878,0.000825,62900.0,62899.0,0.67186222]
[1726894761090,0.000825,62900.0,62899.0,0.57684113]
[1726894761519,0.000825,62900.0,62899.0,0.69569798]
[1726894761785,0.000825,62900.0,62899.0,0.57684113]
[1726894761971,0.000825,62900.0,62899.0,0.65784087]
[1726894762439,0.000825,62900.0,62899.0,0.67184087]
[1726894762708,0.000825,62900.0,62899.0,0.57684113]
[1726894762943,0.000825,62900.0,62899.0,0.56284113]
[1726894763180,0.000825,62900.0,62899.0,0.57684113]
[1726894763422,0.000825,62900.0,62899.0,0.53002582]
[1726894763647,0.000825,62900.0,62899.0,0.56288118]
[1726894763866,0.000825,62900.0,62899.0,0.63211503]
[1726894764310,0.000825,62900.0,62899.0,0.64611503]
[1726894764549,0.000825,62900.0,62899.0,0.66988092]
[1726894764981,0.000825,62900.0,62899.0,0.64610185]
[1726894765203,0.000825,62900.0,62899.0,0.64810185]
[1726894765636,0.000825,62900.0,62899.0,0.63410185]
[1726894765855,0.000825,62900.0,62899.0,0.64610185]
[1726894766749,0.000825,62900.0,62899.0,0.52802582]
[1726894767028,0.000825,62900.0,62899.0,0.48348355]
[1726894770137,0.000825,62900.0,62899.0,0.48418646]
[1726894770389,0.000825,62900.0,62899.0,0.48349213]
[1726894771480,0.000825,62900.0,62899.0,0.36487284]
[1726894771749,0.092425,62900.0,62899.0,0.34187284]
[1726894771966,0.092425,62900.0,62899.0,0.03198704]
[1726894772199,0.170025,62900.0,62899.0,0.014]
[1726894772424,0.17836546,62900.0,62899.0,0.014]
[1726894772866,0.0992,62899.0,62887.0,0.01798704]
[1726894773100,0.11861929,62897.0,62894.0,0.23853255]
[1726894773355,0.11861929,62897.0,62895.0,0.16305367]
[1726894773356,0.0992,62896.0,62895.0,0.16305367]
[1726894773796,0.10746874,62896.0,62895.0,0.16305367]
[1726894776275,0.10746874,62896.0,62895.0,0.17705367]
[1726894787775,0.10746874,62896.0,62895.0,0.014]
[1726894788675,0.10746874,62896.0,62885.0,0.10165]
[1726894788866,0.11861929,62892.0,62891.0,0.23849083]
[1726894789138,0.21141929,62892.0,62887.0,0.123]
[1726894789376,0.10090998,62892.0,62888.0,0.16305367]
[1726894791484,0.10090998,62892.0,62888.0,0.17705367]
[1726894794031,0.0928,62892.0,62888.0,0.17705367]
[1726894796907,0.0928,62892.0,62889.0,0.97703916]
[1726894797133,0.0928,62892.0,62889.0,0.023]
[1726894798280,0.0928,62892.0,62889.0,0.035]
[1726894799375,0.0975,62891.0,62889.0,0.012]
[1726894800267,0.0975,62891.0,62885.0,0.00165]
[1726894800487,0.11861929,62889.0,62886.0,0.023]
[1726894801215,0.11861929,62889.0,62886.0,0.05161317]
[1726894801465,0.11861929,62889.0,62886.0,0.023]
[1726894802176,0.0975,62891.0,62886.0,0.05161317]
[1726894802426,0.0975,62891.0,62887.0,0.02868006]
[1726894802624,0.0975,62891.0,62887.0,0.0144894]
[1726894803144,0.0975,62891.0,62889.0,0.023]
[1726894803383,0.0975,62891.0,62890.0,0.0144894]
[1726894806264,0.0975,62891.0,62890.0,0.0154894]
[1726894809102,0.0975,62891.0,62890.0,0.01550682]
[1726894811448,0.098325,62891.0,62890.0,0.01550682]
[1726894812600,0.098325,62891.0,62890.0,0.001]
[1726894812840,0.098325,62891.0,62890.0,0.01550706]
[1726894814128,0.09813059,62891.0,62890.0,0.01550706]
[1726894815022,0.000825,62891.0,62890.0,0.03850706]
[1726894815248,0.000825,62891.0,62890.0,0.024]
[1726894815484,0.000825,62891.0,62890.0,0.03850673]
[1726894816198,0.00063059,62891.0,62890.0,0.03850673]
[1726894816668,0.00029087,62891.0,62890.0,0.03850673]
[1726894817121,0.00029087,62891.0,62890.0,0.2015604]
[1726894818693,0.00029087,62891.0,62890.0,0.18705367]
[1726894818908,0.00029087,62891.0,62890.0,0.20156602]
[1726894819352,0.00029087,62891.0,62890.0,0.18705367]
[1726894819560,0.00023021,62896.0,62891.0,0.023]
[1726894819787,0.00023021,62896.0,62892.0,0.0145236]
[1726894820004,0.00023021,62896.0,62893.0,0.0145236]
[1726894820223,0.00023021,62896.0,62894.0,0.0145236]
[1726894820456,0.00023021,62896.0,62891.0,0.023]
[1726894820457,0.00023021,62896.0,62895.0,0.01451931]
[1726894820933,0.00223021,62896.0,62895.0,0.01451931]
[1726894821394,0.00023021,62896.0,62895.0,0.20057298]
[1726894821621,0.00223021,62896.0,62895.0,0.20157298]
[1726894822072,0.00223021,62896.0,62895.0,0.18705367]
[1726894822313,0.00223021,62896.0,62895.0,0.20160832]
[1726894823000,0.00223021,62896.0,62895.0,0.20060832]
[1726894823001,0.00023021,62896.0,62895.0,0.20060832]
[1726894823233,0.00023021,62896.0,62895.0,0.24827741]
[1726894823451,0.00223021,62896.0,62895.0,0.34175458]
[1726894823696,0.00023021,62896.0,62895.0,0.44175354]
[1726894824167,0.00023021,62896.0,62895.0,0.47757444]
[1726894824438,0.00023021,62896.0,62895.0,0.42198981]
[1726894824648,0.00023021,62896.0,62895.0,0.4392664]
[1726894824873,0.00023021,62896.0,62895.0,0.41138491]
[1726894825342,0.00023021,62896.0,62895.0,0.4417384]
[1726894825565,0.00023021,62896.0,62895.0,0.40810832]
[1726894828769,0.00023021,62896.0,62895.0,0.31460832]
[1726894829023,0.00023021,62896.0,62895.0,0.30810832]
[1726894829489,0.00023021,62896.0,62895.0,0.40810832]
[1726894831782,0.00023021,62896.0,62895.0,0.42601261]
[1726894832033,0.00023021,62896.0,62895.0,0.41145796]
[1726894832700,0.00023021,62896.0,62895.0,0.42597367]
[1726894834306,0.00023021,62896.0,62895.0,0.40806938]
[1726894835221,0.00023021,62896.0,62895.0,0.29321938]
[1726894835443,0.00023021,62896.0,62895.0,0.27870367]
[1726894835692,0.00023021,62896.0,62895.0,0.2932324]
[1726894837549,0.00023021,62896.0,62895.0,0.3162324]
[1726894838212,0.00023021,62896.0,62895.0,0.33439463]
[1726894838863,0.00023021,62896.0,62895.0,0.31986776]
[1726894839334,0.00023021,62896.0,62895.0,0.33440228]
[1726894842108,0.00023021,62896.0,62895.0,0.31989433]
[1726894842335,0.00023021,62896.0,62895.0,0.33443677]
[1726894848778,0.00023021,62896.0,62895.0,0.31981383]
[1726894849034,0.00023021,62896.0,62895.0,0.33437383]
[1726894852161,0.00023021,62896.0,62895.0,0.31981383]
[1726894852394,0.00023021,62896.0,62895.0,0.33439066]
[1726894859129,0.00023021,62896.0,62895.0,0.31981383]
[1726894859453,0.00023021,62896.0,62895.0,0.33440741]
[1726894860202,0.00023021,62896.0,62895.0,0.31981383]
[1726894860444,0.00023021,62896.0,62895.0,0.33441148]
[1726894861326,0.00023021,62896.0,62895.0,0.30170367]
[1726894861552,0.00023021,62896.0,62895.0,0.32002674]
[1726894863984,0.00023021,62896.0,62895.0,0.34344095]
[1726894867707,0.00023021,62896.0,62895.0,0.34345876]
[1726894870842,0.00023021,62896.0,62895.0,0.32014329]
[1726894871297,0.00023021,62896.0,62895.0,0.34359766]
[1726894872412,0.00023021,62896.0,62895.0,0.34360646]
[1726894874096,0.00023021,62896.0,62895.0,0.30170367]
[1726894874307,0.00023021,62896.0,62895.0,0.32015677]
[1726894874524,0.00023021,62896.0,62895.0,0.34361465]
[1726894876393,0.00014021,62905.0,62896.0,0.2159]
[1726894876614,0.00014021,62905.0,62898.0,0.023]
[1726894876843,0.00014021,62905.0,62899.0,0.04191098]
[1726894877136,0.00014021,62905.0,62900.0,0.04191098]
[1726894877401,0.00014021,62905.0,62901.0,0.04191098]
[1726894877624,0.00014021,62905.0,62902.0,0.04191098]
[1726894877838,0.00014021,62905.0,62898.0,0.023]
[1726894877839,0.00014021,62905.0,62903.0,0.0184531]
[1726894878061,0.00014021,62905.0,62904.0,0.0184531]
[1726894879996,0.00014021,62905.0,62904.0,0.04193539]
[1726894880251,0.00014021,62905.0,62904.0,0.04206349]
[1726894880480,0.00014021,62905.0,62904.0,0.06506349]
[1726894880705,0.00014021,62905.0,62904.0,0.22811716]
[1726894880943,0.09354021,62905.0,62904.0,0.06506349]
[1726894881178,0.09354021,62905.0,62904.0,0.0265812]
[1726894881844,0.2121595,62905.0,62904.0,0.0265812]
[1726894882060,0.2121595,62905.0,62904.0,0.0185812]
[1726894882271,0.25982499,62905.0,62904.0,0.0185812]
[1726894882487,0.2141595,62905.0,62904.0,0.0195812]
[1726894882697,0.26182499,62905.0,62904.0,0.0195812]
[1726894883344,0.26182499,62905.0,62904.0,0.0196376]
[1726894884471,0.2141595,62905.0,62904.0,0.0196376]
[1726894884689,0.26185256,62905.0,62904.0,0.0196376]
[1726894886713,0.26185256,62905.0,62904.0,0.001]
[1726894886954,0.26185256,62905.0,62904.0,0.01963473]
[1726894887871,0.28565773,62905.0,62904.0,0.01963473]
[1726894888116,0.4618262,62905.0,62904.0,0.001]
[1726894888557,0.5432262,62905.0,62904.0,0.001]
[1726894889772,0.21201929,62896.0,62895.0,0.00165]
[1726894890043,0.60272288,62896.0,62895.0,0.00165]
[1726894890512,0.45968599,62896.0,62895.0,0.00165]
[1726894891203,0.12061929,62891.0,62890.0,0.00165]
[1726894891422,0.21201929,62891.0,62890.0,0.00165]
[1726894891889,0.46168599,62891.0,62890.0,0.00165]
[1726894892106,0.45968599,62891.0,62890.0,0.00165]
[1726894892563,0.57863333,62891.0,62890.0,0.00165]
[1726894892782,0.58063333,62891.0,62890.0,0.00165]
[1726894893717,0.55479767,62891.0,62890.0,0.00165]
[1726894893929,0.45968599,62891.0,62890.0,0.00165]
[1726894894152,0.47368599,62891.0,62890.0,0.00265]
[1726894894366,0.56876393,62891.0,62890.0,0.00265]
[1726894895033,0.22601929,62891.0,62890.0,0.00265]
[1726894895250,0.56955592,62891.0,62890.0,0.00265]
[1726894895469,0.22601929,62891.0,62890.0,0.00265]
[1726894895657,0.29730446,62891.0,62890.0,0.00265]
[1726894895973,0.29730177,62891.0,62890.0,0.00265]
[1726894896431,0.22601929,62891.0,62890.0,0.00265]
[1726894896882,0.27352929,62891.0,62890.0,0.00265]
[1726894897102,0.22601929,62891.0,62890.0,0.00265]
[1726894897302,0.2755293,62891.0,62890.0,0.00265]
[1726894898271,0.43858297,62891.0,62890.0,0.00265]
[1726894898502,0.46235544,62891.0,62890.0,0.00265]
[1726894899467,0.20971929,62886.0,62885.0,0.00165]
[1726894899713,0.42024237,62886.0,62885.0,0.00165]
[1726894899953,0.37277296,62886.0,62885.0,0.00165]
[1726894900464,0.42022766,62886.0,62885.0,0.00165]
[1726894900969,0.43022766,62886.0,62885.0,0.00265]
[1726894901455,0.38477296,62886.0,62885.0,0.00265]
[1726894902141,0.38277296,62886.0,62885.0,0.00265]
[1726894902876,0.37277296,62886.0,62885.0,0.00165]
[1726894903126,0.38477296,62886.0,62885.0,0.00265]
[1726894905718,0.4023922,62886.0,62885.0,0.00265]
[1726894906917,0.38477296,62886.0,62885.0,0.00265]
[1726894919777,0.1937,62885.0,62877.0,0.000825]
[1726894920016,0.11861929,62881.0,62877.0,0.000825]
[1726894920253,0.37537296,62881.0,62877.0,0.000825]
[1726894920960,0.37537296,62881.0,62869.0,0.23845671]
[1726894921196,0.1583726,62885.0,62869.0,0.23845671]
[1726894921198,0.11861929,62870.0,62869.0,0.23845671]
[1726894921435,0.11861929,62870.0,62866.0,0.000825]
[1726894921669,0.11861929,62867.0,62866.0,0.000825]
[1726894922162,0.18092763,62867.0,62866.0,0.000825]
[1726894923401,0.20839039,62867.0,62866.0,0.000825]
[1726894923659,0.18992763,62867.0,62866.0,0.001825]
[1726894923930,0.009,62867.0,62866.0,0.001825]
[1726894924134,0.18092763,62867.0,62866.0,0.000825]
[1726894925721,0.19192763,62867.0,62866.0,0.001825]
[1726894926222,0.18092763,62867.0,62866.0,0.000825]
[1726894926458,0.19492763,62867.0,62866.0,0.001825]
[1726894928805,0.3579813,62867.0,62866.0,0.001825]
[1726894932644,0.19492763,62867.0,62866.0,0.001825]
[1726894935983,0.014,62867.0,62866.0,0.001825]
[1726894937164,0.19492763,62867.0,62866.0,0.001825]
[1726894943616,0.014,62867.0,62866.0,0.001825]
[1726894943839,0.014,62867.0,62866.0,0.097725]
[1726894943840,0.19492763,62867.0,62866.0,0.097725]
[1726894944065,0.19492763,62867.0,62866.0,0.001825]
[1726894955638,0.014,62867.0,62866.0,0.001825]
[1726894955890,0.014,62867.0,62866.0,0.117125]
[1726894957313,0.11866219,62874.0,62866.0,0.116125]
[1726894957778,0.009,62867.0,62866.0,0.117125]
[1726894958273,0.000825,62875.0,62866.0,0.116125]
[1726894958752,0.005,62874.0,62866.0,0.116125]
[1726894959942,0.000825,62875.0,62866.0,0.116125]
[1726894960884,0.000825,62875.0,62869.0,0.023]
[1726894961146,0.000825,62875.0,62871.0,0.023]
[1726894961367,0.000825,62875.0,62873.0,0.023]
[1726894961597,0.000825,62875.0,62873.0,0.18605367]
[1726894961832,0.000825,62875.0,62870.0,0.0757]
[1726894961833,0.000825,62875.0,62874.0,0.16305367]
[1726894962097,0.000825,62875.0,62874.0,0.27645367]
[1726894963031,0.000825,62875.0,62874.0,0.37645367]
[1726894963272,0.001825,62875.0,62874.0,0.38945367]
[1726894964447,0.000825,62875.0,62874.0,0.37645367]
[1726894964965,0.001825,62875.0,62874.0,0.38945367]
[1726894989226,0.001825,62875.0,62874.0,0.29905367]
[1726894989718,0.001825,62875.0,62874.0,0.30070367]
[1726894991194,0.001825,62875.0,62874.0,0.20070367]
[1726894998386,0.001825,62875.0,62874.0,0.29360367]
[1726894999565,0.001825,62875.0,62874.0,0.20070367]
[1726895001285,0.001825,62875.0,62874.0,0.217611]
[1726895002031,0.001825,62875.0,62874.0,0.21760708]
[1726895005184,0.001825,62875.0,62874.0,0.20070367]
[1726895005419,0.001825,62875.0,62874.0,0.21765215]
[1726895006620,0.001825,62875.0,62874.0,0.20070367]
[1726895007765,0.001825,62875.0,62874.0,0.03765]
[1726895008993,0.001825,62875.0,62874.0,0.05461689]
[1726895011891,0.001825,62875.0,62874.0,0.03765]
[1726895012354,0.21117418,62875.0,62874.0,0.01465]
[1726895014857,0.21117418,62875.0,62874.0,0.03167248]
[1726895015079,0.21117418,62875.0,62874.0,0.01465]
[1726895015754,0.21017418,62875.0,62874.0,0.00165]
[1726895016002,0.21017418,62875.0,62874.0,0.01365]
[1726895016260,0.21117418,62875.0,62874.0,0.01365]
[1726895016505,0.21017418,62875.0,62874.0,0.00165]
[1726895016942,0.21117418,62875.0,62874.0,0.01165]
[1726895018839,0.21017418,62875.0,62874.0,0.00165]
[1726895019077,0.21517418,62875.0,62874.0,0.00165]
[1726895019783,0.21017418,62875.0,62874.0,0.00165]
[1726895020223,0.21917418,62875.0,62874.0,0.00265]
[1726895023141,0.4659863,62875.0,62874.0,0.00265]
[1726895023374,0.56108469,62875.0,62874.0,0.00265]
[1726895023602,0.46592965,62875.0,62874.0,0.00265]
[1726895023839,0.56102804,62875.0,62874.0,0.00265]
[1726895024570,0.21917418,62875.0,62874.0,0.00265]
[1726895025559,0.29044843,62875.0,62874.0,0.00265]
[1726895027006,0.26668864,62875.0,62874.0,0.00265]
[1726895027239,0.21917418,62875.0,62874.0,0.00265]
[1726895027474,0.26669117,62875.0,62874.0,0.00265]
[1726895029381,0.42974484,62875.0,62874.0,0.00265]
[1726895029622,0.42974484,62875.0,62866.0,0.000825]
[1726895029623,0.21234918,62867.0,62866.0,0.000825]
[1726895030359,0.25985113,62867.0,62866.0,0.000825]
[1726895030589,0.21234918,62867.0,62866.0,0.000825]
[1726895031603,0.4985048,62867.0,62866.0,0.000825]
[1726895031833,0.52225578,62867.0,62866.0,0.000825]
[1726895032518,0.45100285,62867.0,62866.0,0.000825]
[1726895032742,0.49847805,62867.0,62866.0,0.000825]
[1726895032980,0.51247805,62867.0,62866.0,0.000825]
[1726895034078,0.34942438,62867.0,62866.0,0.000825]
[1726895034527,0.30194918,62867.0,62866.0,0.000825]
[1726895039058,0.22634918,62867.0,62866.0,0.000825]
[1726895042200,0.13264918,62867.0,62866.0,0.000825]
[1726895043809,0.11864918,62867.0,62866.0,0.000825]
[1726895044042,0.1415141,62867.0,62866.0,0.000825]
[1726895044276,0.1415141,62867.0,62866.0,0.001825]
[1726895044277,0.2515141,62867.0,62866.0,0.001825]
[1726895044513,0.22864918,62867.0,62866.0,0.001825]
[1726895044760,0.21464918,62867.0,62866.0,0.000825]
[1726895044993,0.22864918,62867.0,62866.0,0.001825]
[1726895045456,0.21464918,62867.0,62866.0,0.000825]
[1726895047094,0.22864918,62867.0,62866.0,0.001825]
[1726895048046,0.014,62867.0,62866.0,0.001825]
[1726895048284,0.13264918,62867.0,62866.0,0.001825]
[1726895050221,0.014,62867.0,62866.0,0.001825]
[1726895050464,0.13264918,62867.0,62866.0,0.001825]
[1726895052611,0.22864918,62867.0,62866.0,0.001825]
[1726895057611,0.2761488,62867.0,62866.0,0.001825]
[1726895058325,0.014,62867.0,62866.0,0.001825]
[1726895060187,0.11864918,62868.0,62866.0,0.000825]
[1726895060410,0.011,62867.0,62866.0,0.001825]
[1726895061123,0.11864918,62868.0,62866.0,0.000825]
[1726895061542,0.13064918,62868.0,62866.0,0.001825]
[1726895061992,0.11864918,62868.0,62866.0,0.000825]
[1726895063869,0.011,62867.0,62866.0,0.001825]
[1726895064383,0.11864918,62868.0,62866.0,0.000825]
[1726895064617,0.13064918,62868.0,62866.0,0.001825]
[1726895065086,0.11864918,62868.0,62866.0,0.000825]
[1726895065552,0.011,62867.0,62866.0,0.001825]
[1726895066502,0.011,62867.0,62866.0,0.024825]
[1726895066735,0.011,62867.0,62866.0,0.119825]
[1726895066969,0.00165,62874.0,62867.0,0.023]
[1726895067199,0.00165,62874.0,62868.0,0.096]
[1726895068917,0.00565,62874.0,62868.0,0.096]
[1726895069151,0.11864918,62870.0,62868.0,0.096]
[1726895070560,0.11864918,62870.0,62868.0,0.097]
[1726895071019,0.11864918,62870.0,62868.0,0.096]
[1726895071256,0.12364918,62870.0,62868.0,0.096]
[1726895072071,0.11864918,62870.0,62868.0,0.096]
[1726895074088,0.12464918,62870.0,62868.0,0.097]
[1726895074486,0.12464918,62870.0,62868.0,0.096]
[1726895074487,0.11864918,62870.0,62868.0,0.096]
[1726895074880,0.12664918,62870.0,62868.0,0.097]
[1726895075319,0.11864918,62870.0,62868.0,0.096]
[1726895075947,0.11864918,62870.0,62869.0,0.01833973]
[1726895077490,0.12464918,62870.0,62869.0,0.01833973]
[1726895077934,0.11864918,62870.0,62869.0,0.01833973]
[1726895078391,0.12664918,62870.0,62869.0,0.01933973]
[1726895079294,0.12664918,62870.0,62869.0,0.001]
[1726895084561,0.1741971,62870.0,62869.0,0.001]
[1726895086248,0.05554792,62870.0,62869.0,0.001]
[1726895086490,0.1741971,62870.0,62869.0,0.001]
[1726895088343,0.17421032,62870.0,62869.0,0.001]
[1726895090253,0.11864918,62870.0,62869.0,0.001]
[1726895091388,0.11864918,62870.0,62869.0,1.114423]
[1726895095946,0.37810285,62870.0,62869.0,0.796302]
[1726895096421,0.37810285,62870.0,62869.0,0.797952]
[1726895100085,0.42566869,62870.0,62869.0,0.797952]
[1726895101965,0.32926869,62870.0,62869.0,0.797952]
[1726895102203,0.28170285,62870.0,62869.0,0.797952]
[1726895104510,0.37620285,62870.0,62869.0,0.797952]
[1726895104745,0.44755191,62870.0,62869.0,0.797952]
[1726895104958,0.37620285,62870.0,62869.0,0.797952]
[1726895105210,0.44752881,62870.0,62869.0,0.797952]
[1726895106143,0.44751382,62870.0,62869.0,0.797952]
[1726895106376,0.37620285,62870.0,62869.0,0.797952]
[1726895106605,0.60177069,62870.0,62869.0,0.797952]
[1726895106849,0.37620285,62870.0,62869.0,0.796952]
[1726895107070,0.61282206,62870.0,62869.0,0.00265]
[1726895107321,0.61273549,62870.0,62869.0,0.00265]
[1726895107600,0.70786898,62870.0,62869.0,0.00265]
[1726895107846,0.61273549,62870.0,62869.0,0.00265]
[1726895108075,0.49408631,62870.0,62869.0,0.00265]
[1726895108297,0.60173549,62870.0,62869.0,0.00165]
[1726895108534,0.61573549,62870.0,62869.0,0.00265]
[1726895109048,0.7103323,62870.0,62869.0,0.00265]
[1726895110168,0.61528208,62870.0,62869.0,0.00265]
[1726895110641,0.61615505,62870.0,62869.0,0.00265]
[1726895110866,0.71113709,62870.0,62869.0,0.00265]
[1726895111301,0.6161113,62870.0,62869.0,0.00265]
[1726895112794,0.71113709,62870.0,62869.0,0.00265]
[1726895113261,0.61604893,62870.0,62869.0,0.00265]
[1726895114447,0.61605665,62870.0,62869.0,0.00265]
[1726895115883,0.7110471,62870.0,62869.0,0.00265]
[1726895116113,0.61605665,62870.0,62869.0,0.00265]
[1726895116563,0.7110471,62870.0,62869.0,0.00265]
[1726895116825,0.38970569,62870.0,62869.0,0.00265]
[1726895117301,0.40704736,62870.0,62869.0,0.00265]
[1726895117765,0.63328616,62870.0,62869.0,0.00265]
[1726895118017,0.40704736,62870.0,62869.0,0.00265]
[1726895118690,0.4782608,62870.0,62869.0,0.00265]
[1726895119577,0.63331665,62870.0,62869.0,0.00265]
[1726895120010,0.40704736,62870.0,62869.0,0.00265]
[1726895120953,0.63330747,62870.0,62869.0,0.00265]
[1726895121834,0.72825092,62870.0,62869.0,0.00265]
[1726895122020,0.63330747,62870.0,62869.0,0.00265]
[1726895122487,0.72825092,62870.0,62869.0,0.00265]
[1726895123377,0.63330747,62870.0,62869.0,0.00265]
[1726895124039,0.72827753,62870.0,62869.0,0.00265]
[1726895124762,0.72828793,62870.0,62869.0,0.00265]
[1726895125203,0.6335474,62870.0,62869.0,0.00265]
[1726895125891,0.75232387,62870.0,62869.0,0.00265]
[1726895126119,0.6335474,62870.0,62869.0,0.00265]
[1726895128615,0.72856676,62870.0,62869.0,0.00265]
[1726895128821,0.6335474,62870.0,62869.0,0.00265]
[1726895129303,0.75232387,62870.0,62869.0,0.00265]
[1726895129547,0.75232387,62870.0,62865.0,0.000826]
[1726895129548,0.6335474,62870.0,62865.0,0.000826]
[1726895129791,0.2136583,62866.0,62865.0,0.000826]
[1726895130025,0.60313865,62866.0,62865.0,0.000826]
[1726895131888,0.60313865,62866.0,62865.0,0.001826]
[1726895132177,0.60124666,62866.0,62865.0,0.001826]
[1726895132420,0.60124666,62866.0,62865.0,0.000826]
[1726895132637,0.0966,62865.0,62862.0,0.0037205]